[Event "Najdorf Memorial-B 2022"]
[Site "Warsaw"]
[Date "2022.07.11"]
[Round "3.11"]
[White "Rog, Mateusz"]
[Black "Napieralski, Lucjan"]
[Result "0-1"]
[ECO "E10"]
[WhiteElo "1564"]
[BlackElo "1414"]
[Annotator "NA"]
[PlyCount "110"]
[EventDate "2022.07.09"]
[EventType "swiss"]
[EventCountry "POL"]
[SourceTitle "playchess.com"]
[Source "ChessBase"]
[SourceQuality "1"]
[TimeControl "40/5400+30:1800+30"]

1. d4 {[%emt 0:00:02]} e6 {[%emt 0:00:09]} 2. c4 {[%emt 0:00:18]} Nf6 {[%emt 0:00:57]} 3. Nf3 {[%emt 0:00:06]} d5 {[%emt 0:00:10]} 4. g3 {[%emt 0:00:09]} c5 {[%emt 0:01:02]} 5. Bg2 {[%emt 0:03:30]} Nc6 {[%emt 0:00:27]} 6. b3 {[%emt 0:01:56]} Qb6 {[%emt 0:01:15]} 7. e3 {[%emt 0:02:27]} cxd4 {[%emt 0:03:51]} 8. exd4 {[%emt 0:00:14]} Bb4+ {[%emt 0:00:32]} 9. Bd2 {[%emt 0:01:50]} Nxd4 {[%emt 0:03:02]} 10. Nxd4 {[%emt 0:00:13]} Qxd4 {[%emt 0:00:24]} 11. Bxb4 {[%emt 0:00:05]} Qxa1 {[%emt 0:00:27]} 12. O-O {[%emt 0:01:11]} a5 {[%emt 0:14:27]} 13. Ba3 {[%emt 0:09:01]} b5 {[%emt 0:17:48]} 14. cxb5 {[%emt 0:08:46]} Bb7 {[%emt 0:07:13]} 15. Qc1 {[%emt 0:03:29]} Rc8 {[%emt 0:09:49]} 16. Qf4 {[%emt 0:00:20]} Nd7 {[%emt 0:00:21]} 17. Qd6 {[%emt 0:03:59]} Qf6 {[%emt 0:00:09]} 18. Bh3 {[%emt 0:00:31]} Rc2 {[%emt 0:03:12]} 19. Bg4 {[%emt 0:13:26]} Rxa2 {[%emt 0:02:07]} 20. Qc7 {[%emt 0:01:41]} Rxa3 {[%emt 0:04:56]} 21. Nxa3 {[%emt 0:01:17]} Ba8 {[%emt 0:00:26]} 22. Qa7 {[%emt 0:01:35]} Qd8 {[%emt 0:01:11]} 23. Rc1 {[%emt 0:00:30]} O-O {[%emt 0:00:53]} 24. Rc7 {[%emt 0:00:13]} Nf6 {[%emt 0:07:12]} 25. Bf3 {[%emt 0:01:19]} Ne8 {[%emt 0:08:50]} 26. Rd7 {[%emt 0:02:51]} Qc8 {[%emt 0:00:22]} 27. b6 {[%emt 0:01:00]} Qc1+ {[%emt 0:01:09]} 28. Kg2 {[%emt 0:00:05]} Bc6 {[%emt 0:00:28]} 29. b7 {[%emt 0:13:25]} Bxb7 {[%emt 0:00:29]} 30. Qxb7 {[%emt 0:00:07]} Qxa3 {[%emt 0:00:14]} 31. Bh5 {[%emt 0:10:46]} g6 {[%emt 0:02:07]} 32. Be2 {[%emt 0:10:52]} Nf6 {[%emt 0:00:36]} 33. Rc7 {[%emt 0:02:34]} Qb2 {[%emt 0:01:03]} 34. Bd3 {[%emt 0:05:15]} Qd4 {[%emt 0:00:39]} 35. Qa6 {[%emt 0:01:35]} Ne4 {[%emt 0:01:34]} 36. Bxe4 {[%emt 0:01:03]} Qxe4+ {[%emt 0:00:01]} 37. f3 {[%emt 0:00:05]} Qb1 {[%emt 0:01:19]} 38. Rb7 {[%emt 0:00:25]} Rc8 {[%emt 0:01:45]} 39. Qxa5 {[%emt 0:00:25]} Rc2+ {[%emt 0:01:07]} 40. Kh3 {[%emt 0:00:00]} Qf1+ {[%emt 0:00:00]} 41. Kg4 {[%emt 0:00:21]} h5+ {[%emt 0:04:12]} 42. Kg5 {[%emt 0:06:08]} Qxf3 {[%emt 0:11:09]} 43. Rb4 {[%emt 0:09:15]} d4 {[%emt 0:12:17]} 44. Qe5 {[%emt 0:10:36]} Qe3+ {[%emt 0:02:19]} 45. Qxe3 {[%emt 0:00:09]} dxe3 {[%emt 0:00:11]} 46. Kh6 {[%emt 0:06:56]} Kf8 {[%emt 0:01:22]} 47. Re4 {[%emt 0:00:07]} e2 {[%emt 0:02:38]} 48. b4 {[%emt 0:00:07]} Ke7 {[%emt 0:00:47]} 49. b5 {[%emt 0:00:06]} Rb2 {[%emt 0:01:51]} 50. Kg7 {[%emt 0:00:49]} Rxb5 {[%emt 0:00:17]} 51. Rxe2 {[%emt 0:00:04]} Rf5 {[%emt 0:00:28]} 52. Rd2 {[%emt 0:00:27]} e5 {[%emt 0:00:24]} 53. Re2 {[%emt 0:01:50]} Ke6 {[%emt 0:00:18]} 54. Kh6 {[%emt 0:01:03]} Kd5 {[%emt 0:00:33]} 55. h3 {[%emt 0:00:25]} Rf3 {[%emt 0:00:59]} 0-1

[Event "Najdorf Memorial-B 2022"]
[Site "Warsaw"]
[Date "2022.07.11"]
[Round "3.12"]
[White "Tsiapko, Andrii"]
[Black "Rutkowski, Feliks"]
[Result "1-0"]
[ECO "E04"]
[WhiteElo "1538"]
[BlackElo "1406"]
[Annotator "NA RC"]
[PlyCount "57"]
[EventDate "2022.07.09"]
[EventType "swiss"]
[EventCountry "POL"]
[SourceTitle "playchess.com"]
[Source "ChessBase"]
[SourceQuality "1"]
[TimeControl "40/5400+30:1800+30"]

1. d4 {[%emt 0:00:03]} d5 {[%emt 0:00:05]} 2. c4 {[%emt 0:00:14]} e6 {[%emt 0:00:07]} 3. Nf3 {[%emt 0:00:21]} Nf6 {[%emt 0:00:47]} 4. g3 {[%emt 0:00:29]} dxc4 {[%emt 0:00:05]} 5. Bg2 {[%emt 0:00:18]} Nc6 {[%emt 0:00:27]} 6. O-O {[%emt 0:00:45]} a6 {[%emt 0:00:21]} 7. e3 {[%emt 0:02:58]} Rb8 {[%emt 0:05:16]} 8. Nfd2 {[%emt 0:04:56]} Bd7 {[%emt 0:16:03]} 9. Nxc4 {[%emt 0:01:05]} b5 {[%emt 0:00:06]} 10. Ne5 {[%emt 0:02:24]} Nd5 {[%emt 0:29:00]} 11. e4 {[%emt 0:21:54]} Nde7 {[%emt 0:03:22]} 12. Nxd7 {[%emt 0:07:48]} Qxd7 {[%emt 0:00:25]} 13. d5 {[%emt 0:12:25]} Na7 {[%emt 0:16:35]} 14. Bh3 {[%emt 0:04:08]} Rd8 {[%emt 0:09:53]} 15. Qb3 {[%emt 0:04:31]} Qc8 {[%emt 0:06:51]} 16. dxe6 {[%emt 0:02:45]} f6 {[%emt 0:00:01]} 17. Be3 {[%emt 0:02:17]} Nac6 {[%emt 0:00:17]} 18. Nc3 {[%emt 0:02:07]} Na5 {[%emt 0:02:13]} 19. Qc2 {[%emt 0:01:37]} g6 {[%emt 0:00:45]} 20. Rad1 {[%emt 0:02:02]} Bg7 {[%emt 0:00:08]} 21. Rxd8+ {[%emt 0:00:40]} Qxd8 {[%emt 0:00:02]} 22. Rd1 {[%emt 0:00:15]} Qc8 {[%emt 0:01:23]} 23. Bc5 {[%emt 0:01:21]} Nac6 {[%emt 0:00:14]} 24. Rd7 {[%emt 0:01:25]} Bf8 {[%emt 0:02:41]} 25. Nd5 {[%emt 0:01:59]} Nxd5 {[%emt 0:00:25]} 26. exd5 {[%emt 0:00:11]} Ne5 {[%emt 0:00:07]} 27. Bxf8 {[%emt 0:00:31]} Kxf8 {[%emt 0:00:08]} 28. Qc5+ {[%emt 0:00:31]} Kg8 {[%emt 0:00:11]} 29. Qe7 {[%emt 0:00:48]} 1-0

[Event "Najdorf Memorial-B 2022"]
[Site "Warsaw"]
[Date "2022.07.11"]
[Round "3.13"]
[White "Sobczak, Filip"]
[Black "Piddubna, Bozhena"]
[Result "0-1"]
[ECO "E12"]
[WhiteElo "1018"]
[BlackElo "1534"]
[Annotator "NA"]
[PlyCount "118"]
[EventDate "2022.07.09"]
[EventType "swiss"]
[EventCountry "POL"]
[SourceTitle "playchess.com"]
[Source "ChessBase"]
[SourceQuality "1"]
[TimeControl "40/5400+30:1800+30"]

1. d4 {[%emt 0:00:02]} Nf6 {[%emt 0:00:29]} 2. c4 {[%emt 0:00:05]} e6 {[%emt 0:00:04]} 3. Nf3 {[%emt 0:00:04]} b6 {[%emt 0:02:53]} 4. Bg5 {[%emt 0:04:43]} Bb4+ {[%emt 0:02:05]} 5. Nc3 {[%emt 0:02:45]} h6 {[%emt 0:00:24]} 6. Bh4 g5 {[%emt 0:00:49]} 7. Bg3 {[%emt 0:01:02]} Ne4 {[%emt 0:00:32]} 8. Qb3 Bxc3+ {[%emt 0:00:53]} 9. bxc3 {[%emt 0:02:10]} d6 {[%emt 0:01:53]} 10. Qc2 {[%emt 0:01:57]} Bb7 {[%emt 0:01:56]} 11. Nd2 {[%emt 0:01:03]} f5 {[%emt 0:02:01]} 12. e3 {[%emt 0:17:46]} Qf6 {[%emt 0:02:40]} 13. Nxe4 {[%emt 0:09:41]} Bxe4 {[%emt 0:01:15]} 14. Qd2 {[%emt 0:00:20]} Rf8 {[%emt 0:08:38]} 15. f3 {[%emt 0:01:38]} Bb7 {[%emt 0:00:57]} 16. Bf2 {[%emt 0:01:39]} Nd7 {[%emt 0:02:23]} 17. Be2 {[%emt 0:09:58]} O-O-O {[%emt 0:02:15]} 18. a4 {[%emt 0:00:26]} a5 {[%emt 0:00:10]} 19. Rb1 {[%emt 0:03:02]} e5 {[%emt 0:01:02]} 20. c5 {[%emt 0:09:01]} dxc5 {[%emt 0:00:36]} 21. d5 {[%emt 0:00:17]} Nb8 {[%emt 0:04:35]} 22. c4 {[%emt 0:00:15]} Na6 {[%emt 0:00:35]} 23. h3 {[%emt 0:02:44]} Nb4 {[%emt 0:01:09]} 24. Rf1 {[%emt 0:02:16]} Qd6 {[%emt 0:01:01]} 25. g4 {[%emt 0:00:51]} f4 {[%emt 0:01:38]} 26. e4 {[%emt 0:00:10]} h5 {[%emt 0:04:48]} 27. Rg1 {[%emt 0:04:15]} h4 {[%emt 0:00:43]} 28. Kf1 {[%emt 0:01:16]} Nc6 {[%emt 0:00:34]} 29. Kg2 {[%emt 0:02:33]} Nd4 {[%emt 0:00:28]} 30. Kh2 {[%emt 0:00:24]} Rde8 {[%emt 0:08:38]} 31. Kg2 {[%emt 0:00:16]} Qd7 {[%emt 0:02:00]} 32. Bd1 {[%emt 0:00:57]} Ba6 {[%emt 0:00:52]} 33. Qc3 Qd6 {[%emt 0:01:08]} 34. Be1 {[%emt 0:03:30]} Kd7 {[%emt 0:00:59]} 35. Rf1 {[%emt 0:00:46]} Rb8 {[%emt 0:00:46]} 36. Qd3 {[%emt 0:01:23]} Rfc8 {[%emt 0:00:53]} 37. Rc1 {[%emt 0:01:55]} Ke7 {[%emt 0:01:13]} 38. Bc3 {[%emt 0:00:40]} Kf6 {[%emt 0:05:55]} 39. Re1 {[%emt 0:01:11]} Rd8 {[%emt 0:00:55]} 40. Bb2 {[%emt 0:00:00]} Bc8 {[%emt 0:00:00]} 41. Rg1 {[%emt 0:02:40]} Bd7 {[%emt 0:07:40]} 42. Bc3 {[%emt 0:00:23]} Be8 {[%emt 0:00:32]} 43. Rb1 {[%emt 0:00:32]} Bg6 {[%emt 0:00:16]} 44. Kf2 {[%emt 0:03:03]} c6 {[%emt 0:00:52]} 45. Be2 {[%emt 0:01:13]} cxd5 {[%emt 0:02:19]} 46. cxd5 {[%emt 0:00:07]} Rdc8 {[%emt 0:04:08]} 47. Qa6 {[%emt 0:00:55]} Ke7 {[%emt 0:04:36]} 48. Rb2 {[%emt 0:06:06]} Nxe2 {[%emt 0:17:08]} 49. Kxe2 {[%emt 0:00:37]} c4 {[%emt 0:03:22]} 50. Qa7+ {[%emt 0:04:24]} Kf8 {[%emt 0:05:04]} 51. Rgb1 {[%emt 0:01:27]} Qc5 52. Bd2 {[%emt 0:05:56]} c3 {[%emt 0:06:25]} 53. Rc2 {[%emt 0:02:08]} Qc4+ {[%emt 0:00:41]} 54. Kf2 {[%emt 0:02:28]} Qd4+ {[%emt 0:00:28]} 55. Ke2 {[%emt 0:01:03]} cxd2 {[%emt 0:00:23]} 56. Rxd2 {[%emt 0:07:20]} Qe3+ {[%emt 0:00:16]} 57. Kd1 {[%emt 0:00:18]} Qxf3+ {[%emt 0:00:34]} 58. Re2 {[%emt 0:00:41]} Qf1+ {[%emt 0:00:17]} 59. Kd2 {[%emt 0:00:30]} Qxb1 {[%emt 0:00:13]} 0-1

[Event "Najdorf Memorial-B 2022"]
[Site "Warsaw"]
[Date "2022.07.11"]
[Round "3.14"]
[White "Flis, Piotr"]
[Black "Machnik, Stanislaw"]
[Result "1-0"]
[ECO "B29"]
[WhiteElo "1523"]
[BlackElo "1381"]
[Annotator "NA RC"]
[PlyCount "75"]
[EventDate "2022.07.09"]
[EventType "swiss"]
[EventCountry "POL"]
[SourceTitle "playchess.com"]
[Source "ChessBase"]
[SourceQuality "1"]
[TimeControl "40/5400+30:1800+30"]

1. e4 {[%emt 0:01:50]} c5 {[%emt 0:00:04]} 2. Nf3 {[%emt 0:00:33]} Nf6 {[%emt 0:00:23]} 3. e5 {[%emt 0:07:55]} Nd5 {[%emt 0:00:02]} 4. c3 {[%emt 0:02:26]} e6 {[%emt 0:07:27]} 5. Na3 {[%emt 0:05:44]} d6 {[%emt 0:05:40]} 6. d4 {[%emt 0:05:28]} cxd4 {[%emt 0:02:41]} 7. Qxd4 {[%emt 0:00:38]} Nc6 {[%emt 0:04:08]} 8. Bb5 {[%emt 0:00:26]} Bd7 {[%emt 0:02:12]} 9. Bxc6 {[%emt 0:02:25]} Bxc6 {[%emt 0:03:03]} 10. Nc4 {[%emt 0:09:27]} dxe5 {[%emt 0:13:44]} 11. Ncxe5 {[%emt 0:01:34]} Be7 {[%emt 0:03:19]} 12. Nxc6 {[%emt 0:01:44]} bxc6 {[%emt 0:00:38]} 13. O-O {[%emt 0:04:37]} O-O {[%emt 0:01:56]} 14. Rd1 {[%emt 0:13:21]} Bf6 {[%emt 0:07:09]} 15. Qa4 {[%emt 0:00:51]} Qb6 {[%emt 0:03:36]} 16. c4 {[%emt 0:06:59]} Qb4 {[%emt 0:03:59]} 17. Qxb4 {[%emt 0:02:58]} Nxb4 {[%emt 0:00:01]} 18. a3 {[%emt 0:02:33]} Nc2 {[%emt 0:04:03]} 19. Rb1 {[%emt 0:00:23]} Rfd8 {[%emt 0:07:48]} 20. Bg5 {[%emt 0:06:17]} Bxg5 {[%emt 0:02:01]} 21. Nxg5 {[%emt 0:00:10]} c5 {[%emt 0:00:23]} 22. Ne4 {[%emt 0:09:36]} Rdc8 {[%emt 0:02:04]} 23. Rd2 {[%emt 0:01:07]} Nd4 {[%emt 0:01:48]} 24. b4 {[%emt 0:01:01]} Nc6 {[%emt 0:06:17]} 25. Nxc5 {[%emt 0:00:38]} Ne5 {[%emt 0:00:09]} 26. Rd4 {[%emt 0:01:30]} Rab8 {[%emt 0:01:55]} 27. Rbd1 {[%emt 0:00:43]} g6 {[%emt 0:02:43]} 28. f4 {[%emt 0:01:16]} Nc6 {[%emt 0:00:52]} 29. Rd7 {[%emt 0:01:01]} e5 {[%emt 0:03:05]} 30. fxe5 {[%emt 0:00:53]} Nxe5 {[%emt 0:00:11]} 31. Rxa7 {[%emt 0:00:11]} Nxc4 {[%emt 0:00:07]} 32. Rdd7 {[%emt 0:02:17]} h5 {[%emt 0:02:36]} 33. Rxf7 {[%emt 0:00:40]} Nxa3 {[%emt 0:00:13]} 34. Rg7+ {[%emt 0:00:16]} Kh8 {[%emt 0:00:46]} 35. Rh7+ {[%emt 0:00:09]} Kg8 {[%emt 0:00:04]} 36. Rag7+ {[%emt 0:00:08]} Kf8 {[%emt 0:00:03]} 37. Ne6+ {[%emt 0:00:09]} Ke8 {[%emt 0:00:07]} 38. Rg8# 1-0

[Event "Najdorf Memorial-B 2022"]
[Site "Warsaw"]
[Date "2022.07.11"]
[Round "3.15"]
[White "Nawalaniec, Adam"]
[Black "Dysko, Michal"]
[Result "0-1"]
[ECO "C00"]
[WhiteElo "1768"]
[BlackElo "1376"]
[Annotator "NA"]
[PlyCount "142"]
[EventDate "2022.07.09"]
[EventType "swiss"]
[EventCountry "POL"]
[SourceTitle "playchess.com"]
[Source "ChessBase"]
[SourceQuality "1"]
[TimeControl "40/5400+30:1800+30"]

1. e4 {[%emt 0:00:01]} e6 {[%emt 0:00:11]} 2. d3 {[%emt 0:00:06]} d5 {[%emt 0:00:13]} 3. Nd2 {[%emt 0:00:11]} Nf6 {[%emt 0:00:21]} 4. Ngf3 {[%emt 0:00:28]} dxe4 {[%emt 0:01:06]} 5. dxe4 {[%emt 0:00:08]} Bc5 {[%emt 0:00:05]} 6. Bd3 {[%emt 0:06:09]} e5 {[%emt 0:04:23]} 7. Nb3 {[%emt 0:11:57]} Bd6 {[%emt 0:00:40]} 8. O-O {[%emt 0:04:57]} O-O {[%emt 0:01:28]} 9. h3 {[%emt 0:07:39]} Nbd7 {[%emt 0:06:42]} 10. Be3 {[%emt 0:03:24]} a5 {[%emt 0:03:09]} 11. a4 {[%emt 0:03:20]} b6 {[%emt 0:01:15]} 12. Nh4 {[%emt 0:05:34]} Bb7 {[%emt 0:04:23]} 13. Nf5 {[%emt 0:05:29]} Be7 {[%emt 0:10:57]} 14. Qf3 {[%emt 0:05:08]} Re8 {[%emt 0:05:33]} 15. Qg3 {[%emt 0:20:50]} Nh5 {[%emt 0:02:58]} 16. Nh6+ {[%emt 0:03:36]} Kf8 {[%emt 0:00:02]} 17. Qf3 {[%emt 0:00:53]} Nhf6 {[%emt 0:02:56]} 18. Qf5 {[%emt 0:04:32]} g6 {[%emt 0:05:24]} 19. Qf3 {[%emt 0:01:05]} Kg7 {[%emt 0:01:43]} 20. Rad1 {[%emt 0:06:00]} Rf8 {[%emt 0:01:03]} 21. Rd2 {[%emt 0:05:50]} Qe8 {[%emt 0:02:45]} 22. Rfd1 {[%emt 0:00:46]} Rd8 {[%emt 0:00:40]} 23. g4 {[%emt 0:01:29]} Bc6 {[%emt 0:09:43]} 24. Bc4 {[%emt 0:00:48]} Bxe4 {[%emt 0:01:39]} 25. Qe2 {[%emt 0:00:01]} Bc6 {[%emt 0:10:42]} 26. Bb5 {[%emt 0:00:14]} Nb8 {[%emt 0:05:43]} 27. g5 {[%emt 0:01:31]} Ne4 {[%emt 0:04:28]} 28. Rxd8 {[%emt 0:00:44]} Bxd8 29. Rxd8 {[%emt 0:01:29]} Qxd8 {[%emt 0:00:53]} 30. Bxc6 {[%emt 0:00:17]} Nxc6 {[%emt 0:00:02]} 31. Qc4 {[%emt 0:00:00]} Nxg5 {[%emt 0:02:57]} 32. Qxc6 {[%emt 0:00:10]} Nxh3+ {[%emt 0:00:49]} 33. Kg2 {[%emt 0:00:32]} Nf4+ {[%emt 0:02:00]} 34. Bxf4 {[%emt 0:00:01]} exf4 {[%emt 0:00:01]} 35. Ng4 {[%emt 0:00:49]} Qg5 {[%emt 0:00:22]} 36. f3 {[%emt 0:01:14]} h5 {[%emt 0:00:26]} 37. Qc3+ {[%emt 0:00:02]} Kg8 {[%emt 0:00:31]} 38. Qf6 {[%emt 0:00:10]} Qxf6 39. Nxf6+ Kg7 {[%emt 0:02:18]} 40. Nd5 {[%emt 0:00:00]} g5 {[%emt 0:00:00]} 41. c3 {[%emt 0:01:42]} Re8 {[%emt 0:04:29]} 42. Nd4 {[%emt 0:01:07]} c5 {[%emt 0:03:30]} 43. Nf5+ {[%emt 0:00:44]} Kf8 {[%emt 0:03:17]} 44. Nxb6 {[%emt 0:00:53]} Re2+ {[%emt 0:01:13]} 45. Kh3 {[%emt 0:00:47]} Rf2 {[%emt 0:05:06]} 46. Nd7+ {[%emt 0:00:46]} Kg8 {[%emt 0:01:05]} 47. Nxc5 {[%emt 0:04:43]} Rxf3+ {[%emt 0:01:02]} 48. Kg2 {[%emt 0:00:02]} g4 {[%emt 0:00:33]} 49. c4 {[%emt 0:03:07]} Rh3 {[%emt 0:01:37]} 50. Kg1 {[%emt 0:07:51]} g3 {[%emt 0:01:27]} 51. Ne4 {[%emt 0:02:38]} Rh2 {[%emt 0:02:48]} 52. c5 {[%emt 0:02:37]} Rxb2 {[%emt 0:01:44]} 53. Nf6+ {[%emt 0:02:23]} Kf8 {[%emt 0:00:15]} 54. Nxh5 {[%emt 0:06:36]} Rb4 {[%emt 0:01:52]} 55. Nd6 {[%emt 0:01:22]} Rxa4 {[%emt 0:01:02]} 56. Nxf4 {[%emt 0:02:49]} Rxf4 {[%emt 0:00:32]} 57. c6 {[%emt 0:00:02]} Rd4 {[%emt 0:01:14]} 58. c7 {[%emt 0:00:29]} Rd1+ {[%emt 0:00:02]} 59. Kg2 {[%emt 0:00:00]} Rc1 {[%emt 0:00:19]} 60. c8=Q+ {[%emt 0:00:09]} Rxc8 {[%emt 0:00:14]} 61. Nxc8 {[%emt 0:00:11]} a4 {[%emt 0:00:15]} 62. Nb6 {[%emt 0:00:08]} a3 {[%emt 0:00:16]} 63. Nd7+ {[%emt 0:00:06]} Ke7 {[%emt 0:00:10]} 64. Nc5 {[%emt 0:00:09]} a2 {[%emt 0:01:00]} 65. Nb3 {[%emt 0:00:06]} Kd6 {[%emt 0:00:01]} 66. Kxg3 {[%emt 0:00:25]} Kd5 {[%emt 0:00:13]} 67. Kf4 {[%emt 0:00:28]} Kc4 {[%emt 0:00:14]} 68. Na1 {[%emt 0:00:11]} Kc3 {[%emt 0:00:08]} 69. Ke3 {[%emt 0:00:08]} Kb2 {[%emt 0:00:15]} 70. Kd2 {[%emt 0:00:08]} Kxa1 {[%emt 0:00:11]} 71. Kc2 {[%emt 0:00:05]} f5 {[%emt 0:00:07]} 0-1

[Event "Najdorf Memorial-B 2022"]
[Site "Warsaw"]
[Date "2022.07.11"]
[Round "3.16"]
[White "Bartczak, Hanna"]
[Black "Koziol, Pawel"]
[Result "1/2-1/2"]
[ECO "A40"]
[WhiteElo "1479"]
[BlackElo "1771"]
[Annotator "NA RC"]
[PlyCount "85"]
[EventDate "2022.07.09"]
[EventType "swiss"]
[EventCountry "POL"]
[SourceTitle "playchess.com"]
[Source "ChessBase"]
[SourceQuality "1"]
[TimeControl "40/5400+30:1800+30"]

1. d4 {[%emt 0:04:33]} g6 {[%emt 0:00:17]} 2. Nc3 {[%emt 0:00:21]} d5 {[%emt 0:00:37]} 3. Bf4 {[%emt 0:00:43]} Nf6 {[%emt 0:00:35]} 4. e3 {[%emt 0:01:02]} Bg7 {[%emt 0:00:21]} 5. Bd3 {[%emt 0:00:58]} O-O {[%emt 0:00:47]} 6. h4 {[%emt 0:01:52]} h5 {[%emt 0:01:36]} 7. Nf3 {[%emt 0:11:34]} Bg4 {[%emt 0:01:30]} 8. Be2 {[%emt 0:00:31]} Nbd7 {[%emt 0:03:40]} 9. Ne5 {[%emt 0:01:41]} Bxe2 {[%emt 0:00:42]} 10. Qxe2 {[%emt 0:00:39]} c5 {[%emt 0:01:21]} 11. O-O-O {[%emt 0:02:35]} Rc8 {[%emt 0:04:48]} 12. Qb5 {[%emt 0:08:02]} cxd4 {[%emt 0:04:00]} 13. exd4 {[%emt 0:02:50]} Nb6 {[%emt 0:03:29]} 14. f3 {[%emt 0:05:35]} e6 {[%emt 0:07:21]} 15. Rdg1 {[%emt 0:11:22]} Nc4 {[%emt 0:03:23]} 16. Qxb7 {[%emt 0:15:09]} Nxe5 {[%emt 0:16:54]} 17. Bxe5 {[%emt 0:00:26]} Qa5 {[%emt 0:00:57]} 18. Qb5 {[%emt 0:02:21]} Qxb5 {[%emt 0:05:11]} 19. Nxb5 {[%emt 0:00:06]} a6 {[%emt 0:01:31]} 20. Na3 {[%emt 0:01:44]} Bh6+ {[%emt 0:00:36]} 21. Kb1 {[%emt 0:01:31]} Nd7 {[%emt 0:00:14]} 22. Bd6 {[%emt 0:01:29]} Rfe8 {[%emt 0:00:20]} 23. c3 {[%emt 0:00:15]} Rc6 {[%emt 0:00:30]} 24. Bg3 {[%emt 0:01:06]} Rec8 {[%emt 0:01:13]} 25. Nc2 {[%emt 0:00:28]} Rb6 {[%emt 0:01:15]} 26. Ka1 {[%emt 0:01:54]} f6 {[%emt 0:05:44]} 27. Re1 {[%emt 0:00:31]} Kf7 {[%emt 0:02:24]} 28. Re2 {[%emt 0:00:21]} Nb8 {[%emt 0:02:08]} 29. Ne1 {[%emt 0:02:53]} a5 {[%emt 0:02:14]} 30. Nd3 {[%emt 0:00:45]} Na6 {[%emt 0:00:31]} 31. Rhe1 {[%emt 0:01:18]} a4 {[%emt 0:00:48]} 32. Nf4 {[%emt 0:00:42]} Rcc6 {[%emt 0:01:26]} 33. Nd3 {[%emt 0:07:29]} Bf8 {[%emt 0:02:50]} 34. Rc2 {[%emt 0:01:22]} Nc7 {[%emt 0:01:55]} 35. Rec1 {[%emt 0:03:14]} Nb5 {[%emt 0:04:15]} 36. Bf2 {[%emt 0:02:09]} a3 {[%emt 0:05:08]} 37. b3 {[%emt 0:00:49]} Bh6 {[%emt 0:00:16]} 38. f4 {[%emt 0:00:05]} Nd6 {[%emt 0:00:53]} 39. c4 {[%emt 0:00:28]} Ne4 {[%emt 0:02:51]} 40. cxd5 {[%emt 0:00:00]} Rxc2 {[%emt 0:00:00]} 41. Rxc2 {[%emt 0:00:44]} exd5 {[%emt 0:01:56]} 42. Be1 {[%emt 0:04:09]} Bf8 {[%emt 0:01:06]} 43. Bf2 1/2-1/2

[Event "Najdorf Memorial-B 2022"]
[Site "Warsaw"]
[Date "2022.07.11"]
[Round "3.17"]
[White "Nowak, Lukasz"]
[Black "Jaroszuk, Marcin"]
[Result "0-1"]
[ECO "A98"]
[WhiteElo "2327"]
[BlackElo "1476"]
[Annotator "RC"]
[PlyCount "42"]
[EventDate "2022.07.09"]
[EventType "swiss"]
[EventCountry "POL"]
[SourceTitle "playchess.com"]
[Source "ChessBase"]
[SourceQuality "1"]
[TimeControl "40/5400+30:1800+30"]

1. d4 {[%emt 0:00:02]} e6 {[%emt 0:00:21]} 2. c4 {[%emt 0:00:23]} f5 {[%emt 0:00:33]} 3. g3 {[%emt 0:00:17]} Nf6 {[%emt 0:00:09]} 4. Bg2 {[%emt 0:00:07]} Be7 {[%emt 0:00:16]} 5. Nf3 {[%emt 0:00:08]} O-O {[%emt 0:00:12]} 6. O-O {[%emt 0:00:56]} d6 {[%emt 0:00:06]} 7. Nc3 {[%emt 0:00:22]} Qe8 {[%emt 0:00:22]} 8. Qc2 {[%emt 0:04:40]} Qh5 {[%emt 0:00:40]} 9. e4 {[%emt 0:12:26]} e5 {[%emt 0:00:12]} 10. dxe5 {[%emt 0:08:54]} dxe5 {[%emt 0:00:09]} 11. Nd5 {[%emt 0:03:36]} Nxd5 {[%emt 0:00:23]} 12. cxd5 {[%emt 0:00:35]} Bd6 {[%emt 0:01:56]} 13. Ng5 {[%emt 0:08:25]} f4 {[%emt 0:06:56]} 14. Nf3 {[%emt 0:07:11]} Bg4 {[%emt 0:03:19]} 15. Qc3 {[%emt 0:00:41]} Nd7 {[%emt 0:02:56]} 16. Bd2 {[%emt 0:03:45]} Rf6 {[%emt 0:01:32]} 17. h4 {[%emt 0:03:53]} Raf8 {[%emt 0:05:59]} 18. Nh2 {[%emt 0:00:55]} f3 {[%emt 0:06:50]} 19. Nxg4 {[%emt 0:00:06]} Qxg4 {[%emt 0:00:21]} 20. Bh1 {[%emt 0:00:06]} Rg6 {[%emt 0:23:09]} 21. Kh2 {[%emt 0:00:25]} Be7 {[%emt 0:09:15]} 0-1